[Event "*** SCC Grand Prix: Titled Tuesday Blitz"]
[Site "Chess.com"]
[Date "2020.08.11"]
[Round "4"]
[White "Schandenfreude"]
[Black "ItsCheckM8Mate"]
[Result "1-0"]
[WhiteElo "2549"]
[BlackElo "2311"]
[TimeControl "180+1"]
[EndTime "10:40:58 PDT"]
[Termination "Schandenfreude won by resignation"]

1. d4 {[%clk 0:03:00.9]} 1... Nf6 {[%clk 0:02:59.7]} 2. Bf4 {[%clk 0:03:00.2]}
2... g6 {[%clk 0:02:50.9]} 3. e3 {[%clk 0:02:56.3]} 3... Bg7 {[%clk 0:02:50.8]}
4. Nf3 {[%clk 0:02:56.6]} 4... O-O {[%clk 0:02:50.3]} 5. h3 {[%clk 0:02:57.1]}
5... d6 {[%clk 0:02:49.3]} 6. Be2 {[%clk 0:02:56]} 6... Nbd7 {[%clk 0:02:48.9]}
7. O-O {[%clk 0:02:55.6]} 7... c5 {[%clk 0:02:43.8]} 8. c3 {[%clk 0:02:53.9]}
8... Qb6 {[%clk 0:02:42.9]} 9. Qb3 {[%clk 0:02:53.4]} 9... Re8 {[%clk
0:02:28.3]} 10. Nbd2 {[%clk 0:02:50.4]} 10... Qxb3 {[%clk 0:02:15.1]} 11. axb3
{[%clk 0:02:49]} 11... a6 {[%clk 0:02:11.7]} 12. Bh2 {[%clk 0:02:40.8]} 12...
cxd4 {[%clk 0:01:56.6]} 13. exd4 {[%clk 0:02:38.2]} 13... Nb6 {[%clk 0:01:55.8]}
14. Rfe1 {[%clk 0:02:31]} 14... Be6 {[%clk 0:01:55.4]} 15. Ng5 {[%clk
0:02:15.6]} 15... Bd5 {[%clk 0:01:45]} 16. Bf3 {[%clk 0:02:08.6]} 16... Bxf3
{[%clk 0:01:36.6]} 17. Ngxf3 {[%clk 0:02:09.5]} 17... Rac8 {[%clk 0:01:31.3]}
18. Ra5 {[%clk 0:02:06.1]} 18... d5 {[%clk 0:01:22.5]} 19. Rc5 {[%clk
0:01:57.3]} 19... e6 {[%clk 0:01:09.6]} 20. Ne5 {[%clk 0:01:49.2]} 20... Rxc5
{[%clk 0:01:04.1]} 21. dxc5 {[%clk 0:01:49.3]} 21... Nbd7 {[%clk 0:01:04.7]} 22.
b4 {[%clk 0:01:45.8]} 22... Nxe5 {[%clk 0:00:59.3]} 23. Bxe5 {[%clk 0:01:45.3]}
23... Nd7 {[%clk 0:00:51.2]} 24. Bxg7 {[%clk 0:01:43.8]} 24... Kxg7 {[%clk
0:00:52.1]} 25. Ra1 {[%clk 0:01:37.8]} 25... e5 {[%clk 0:00:49.2]} 26. Nb3
{[%clk 0:01:33.9]} 26... Nf6 {[%clk 0:00:29.1]} 27. Na5 {[%clk 0:01:16.2]} 27...
Rb8 {[%clk 0:00:28.4]} 28. Re1 {[%clk 0:01:07.9]} 28... Nd7 {[%clk 0:00:22.1]}
29. Rd1 {[%clk 0:01:08]} 29... Nf6 {[%clk 0:00:21.4]} 30. c6 {[%clk 0:01:03.7]}
30... bxc6 {[%clk 0:00:19.8]} 31. Nxc6 {[%clk 0:01:04.3]} 31... Re8 {[%clk
0:00:18.7]} 32. Re1 {[%clk 0:01:04.5]} 32... Nd7 {[%clk 0:00:17.4]} 33. Ra1
{[%clk 0:01:01.1]} 33... Nb8 {[%clk 0:00:15.5]} 34. Nxb8 {[%clk 0:01:00]} 34...
Rxb8 {[%clk 0:00:16.4]} 35. Rxa6 {[%clk 0:01:00.9]} 35... d4 {[%clk 0:00:17]}
36. Rd6 {[%clk 0:00:42.1]} 36... f5 {[%clk 0:00:12]} 37. f3 {[%clk 0:00:38.1]}
37... dxc3 {[%clk 0:00:10.3]} 38. bxc3 {[%clk 0:00:38.6]} 38... Rc8 {[%clk
0:00:10.8]} 39. Rd3 {[%clk 0:00:37.5]} 39... Kf6 {[%clk 0:00:10.6]} 40. Kf2
{[%clk 0:00:37.3]} 40... e4 {[%clk 0:00:10.3]} 41. fxe4 {[%clk 0:00:35.8]} 41...
fxe4 {[%clk 0:00:11.2]} 42. Re3 {[%clk 0:00:34]} 42... Ke5 {[%clk 0:00:11.3]}
43. Ke2 {[%clk 0:00:34.4]} 43... g5 {[%clk 0:00:10.4]} 44. Kd2 {[%clk
0:00:29.9]} 44... Kf4 {[%clk 0:00:10.6]} 45. g3+ {[%clk 0:00:29]} 45... Ke5
{[%clk 0:00:10.4]} 46. Kc2 {[%clk 0:00:29.5]} 46... Rf8 {[%clk 0:00:10.3]} 47.
b5 {[%clk 0:00:23.3]} 47... Rf2+ {[%clk 0:00:09.4]} 48. Kb3 {[%clk 0:00:22.3]}
48... Rf3 {[%clk 0:00:09.2]} 49. Re1 {[%clk 0:00:22.1]} 49... Kd5 {[%clk
0:00:07.7]} 50. Kb4 {[%clk 0:00:21.8]} 50... Rxg3 {[%clk 0:00:06.9]} 51. c4+
{[%clk 0:00:21.8]} 51... Kd6 {[%clk 0:00:06.5]} 52. Rxe4 {[%clk 0:00:20.5]}
52... Rxh3 {[%clk 0:00:05.6]} 53. c5+ {[%clk 0:00:20.7]} 53... Kd5 {[%clk
0:00:05.7]} 54. c6 {[%clk 0:00:13.5]} 54... Kxe4 {[%clk 0:00:03.3]} 55. c7
{[%clk 0:00:14]} 55... g4 {[%clk 0:00:01.8]} 56. c8=Q {[%clk 0:00:12.7]} 56...
Kf3 {[%clk 0:00:01.6]} 57. Qf5+ {[%clk 0:00:12.2]} 57... Kg3 {[%clk 0:00:02.2]}
58. b6 {[%clk 0:00:12]} 58... Rh1 {[%clk 0:00:02.3]} 59. b7 {[%clk 0:00:09.8]}
59... Rh2 {[%clk 0:00:02.8]} 60. Qe5+ {[%clk 0:00:07.8]} 60... Kh3 {[%clk
0:00:02.7]} 61. b8=Q {[%clk 0:00:06.9]} 1-0

[Event "*** SCC Grand Prix: Titled Tuesday Blitz"]
[Site "Chess.com"]
[Date "2020.08.11"]
[Round "4"]
[White "Volodar_Murzin"]
[Black "Lion-Al-Messi"]
[Result "1-0"]
[WhiteElo "2692"]
[BlackElo "2496"]
[TimeControl "180+1"]
[EndTime "10:41:00 PDT"]
[Termination "Volodar_Murzin won by resignation"]

1. e4 {[%clk 0:03:00.9]} 1... e6 {[%clk 0:03:00.4]} 2. d4 {[%clk 0:03:00.1]}
2... d5 {[%clk 0:03:01]} 3. exd5 {[%clk 0:03:01]} 3... exd5 {[%clk 0:03:01.9]}
4. Nf3 {[%clk 0:03:00.9]} 4... Bg4 {[%clk 0:03:01.4]} 5. h3 {[%clk 0:02:59.8]}
5... Bh5 {[%clk 0:03:01]} 6. Bd3 {[%clk 0:02:58.6]} 6... Bd6 {[%clk 0:02:57.7]}
7. O-O {[%clk 0:02:58.1]} 7... Ne7 {[%clk 0:02:57.1]} 8. c3 {[%clk 0:02:56.3]}
8... Nbc6 {[%clk 0:02:56.4]} 9. Nbd2 {[%clk 0:02:55.6]} 9... Qd7 {[%clk
0:02:56.6]} 10. b4 {[%clk 0:02:50.8]} 10... Bg6 {[%clk 0:02:51.7]} 11. Qc2
{[%clk 0:02:50.2]} 11... O-O {[%clk 0:02:50.7]} 12. a4 {[%clk 0:02:46.5]} 12...
Bxd3 {[%clk 0:02:50.4]} 13. Qxd3 {[%clk 0:02:46.2]} 13... Qf5 {[%clk 0:02:51.3]}
14. Qxf5 {[%clk 0:02:45.2]} 14... Nxf5 {[%clk 0:02:52.2]} 15. Nb3 {[%clk
0:02:44]} 15... b6 {[%clk 0:02:52]} 16. Bd2 {[%clk 0:02:41.2]} 16... Rfe8 {[%clk
0:02:51]} 17. Rfe1 {[%clk 0:02:39.5]} 17... Bf8 {[%clk 0:02:50.9]} 18. Kf1
{[%clk 0:02:39.3]} 18... Nd6 {[%clk 0:02:50.3]} 19. b5 {[%clk 0:02:38.3]} 19...
Ne7 {[%clk 0:02:49.1]} 20. Bf4 {[%clk 0:02:38.3]} 20... Nec8 {[%clk 0:02:31.6]}
21. Rxe8 {[%clk 0:02:36.4]} 21... Nxe8 {[%clk 0:02:31.2]} 22. Ne5 {[%clk
0:02:36.1]} 22... Ncd6 {[%clk 0:02:12.4]} 23. Nc6 {[%clk 0:02:35.5]} 23... a6
{[%clk 0:02:11.1]} 24. bxa6 {[%clk 0:02:34.5]} 24... Rxa6 {[%clk 0:02:11.2]} 25.
Nb4 {[%clk 0:02:34.8]} 25... Ra7 {[%clk 0:01:51.8]} 26. Nxd5 {[%clk 0:02:34.4]}
26... Nc4 {[%clk 0:01:52.1]} 27. Re1 {[%clk 0:02:31.2]} 27... Ned6 {[%clk
0:01:47.8]} 28. Bxd6 {[%clk 0:02:25.5]} 28... Nxd6 {[%clk 0:01:45.8]} 29. Ra1
{[%clk 0:02:21.8]} 29... Nc4 {[%clk 0:01:43.8]} 30. Ne3 {[%clk 0:02:21]} 30...
Nd6 {[%clk 0:01:30.9]} 31. f3 {[%clk 0:02:12.4]} 31... Nb7 {[%clk 0:01:27.9]}
32. Ke2 {[%clk 0:02:11.1]} 32... f6 {[%clk 0:01:25.9]} 33. Kd3 {[%clk
0:02:10.6]} 33... Kf7 {[%clk 0:01:26.1]} 34. g4 {[%clk 0:01:59.5]} 34... Ke6
{[%clk 0:01:23.3]} 35. h4 {[%clk 0:01:58.7]} 35... g6 {[%clk 0:01:21.5]} 36. Nc4
{[%clk 0:01:56.4]} 36... Kd7 {[%clk 0:01:19.8]} 37. Ncd2 {[%clk 0:01:53.7]}
37... Be7 {[%clk 0:01:15.3]} 38. h5 {[%clk 0:01:50.1]} 38... gxh5 {[%clk
0:01:12.9]} 39. gxh5 {[%clk 0:01:51]} 39... Ke6 {[%clk 0:01:11.9]} 40. Ne4
{[%clk 0:01:47.1]} 40... Kf7 {[%clk 0:01:11.2]} 41. Ng3 {[%clk 0:01:46.3]} 41...
Bf8 {[%clk 0:00:57.3]} 42. Nf5 {[%clk 0:01:42.6]} 42... Ke6 {[%clk 0:00:56.9]}
43. Ne3 {[%clk 0:01:37.4]} 43... Bh6 {[%clk 0:00:47.8]} 44. Nc4 {[%clk
0:01:33.3]} 44... Kf7 {[%clk 0:00:40.7]} 45. a5 {[%clk 0:01:30.9]} 45... bxa5
{[%clk 0:00:40.4]} 46. Ncxa5 {[%clk 0:01:29.3]} 46... Nxa5 {[%clk 0:00:39.5]}
47. Rxa5 {[%clk 0:01:29.3]} 47... Rb7 {[%clk 0:00:37.7]} 48. Kc4 {[%clk
0:01:27.4]} 48... Bf4 {[%clk 0:00:30.9]} 49. Ra8 {[%clk 0:01:20.9]} 49... Kg7
{[%clk 0:00:26.6]} 50. Nc5 {[%clk 0:01:19.6]} 50... Rb6 {[%clk 0:00:27]} 51. Kd5
{[%clk 0:01:16.6]} 51... Rd6+ {[%clk 0:00:24.9]} 52. Ke4 {[%clk 0:01:15.7]}
52... Bg3 {[%clk 0:00:24.5]} 53. Rc8 {[%clk 0:01:05.9]} 53... Kh6 {[%clk
0:00:21]} 54. Rxc7 {[%clk 0:00:50]} 54... f5+ {[%clk 0:00:20.1]} 55. Kxf5 {[%clk
0:00:42.1]} 55... Rd5+ {[%clk 0:00:14.2]} 56. Ke4 {[%clk 0:00:41.9]} 56... Rxd4+
{[%clk 0:00:14.5]} 57. cxd4 {[%clk 0:00:42.3]} 57... Bxc7 {[%clk 0:00:15.4]} 58.
Ne6 {[%clk 0:00:39.2]} 58... Bd6 {[%clk 0:00:15.2]} 59. f4 {[%clk 0:00:25]}
59... Kxh5 {[%clk 0:00:14.4]} 60. f5 {[%clk 0:00:25.3]} 60... Kh6 {[%clk
0:00:11.3]} 61. d5 {[%clk 0:00:20.5]} 61... Kh5 {[%clk 0:00:10.7]} 62. Kf3
{[%clk 0:00:19.5]} 62... Be5 {[%clk 0:00:10.3]} 63. Nf8 {[%clk 0:00:15.2]} 63...
h6 {[%clk 0:00:09.6]} 64. Nh7 {[%clk 0:00:12.9]} 64... Bd6 {[%clk 0:00:08.7]}
65. Nf6+ {[%clk 0:00:09.7]} 65... Kh4 {[%clk 0:00:08.2]} 66. Ne4 {[%clk
0:00:09]} 66... Bf8 {[%clk 0:00:08.3]} 67. d6 {[%clk 0:00:07.7]} 67... Kh5
{[%clk 0:00:08.3]} 68. d7 {[%clk 0:00:07.1]} 68... Be7 {[%clk 0:00:08.3]} 69. f6
{[%clk 0:00:07.5]} 1-0

[Event "*** SCC Grand Prix: Titled Tuesday Blitz"]
[Site "Chess.com"]
[Date "2020.08.11"]
[Round "4"]
[White "guillembaches"]
[Black "Zarinur"]
[Result "1-0"]
[WhiteElo "2403"]
[BlackElo "2161"]
[TimeControl "180+1"]
[EndTime "10:41:00 PDT"]
[Termination "guillembaches won on time"]

1. e4 {[%clk 0:03:00.9]} 1... e5 {[%clk 0:02:59.5]} 2. Nf3 {[%clk 0:03:01]} 2...
Nc6 {[%clk 0:02:58.8]} 3. Nc3 {[%clk 0:03:01.5]} 3... Nf6 {[%clk 0:02:58.5]} 4.
d4 {[%clk 0:03:02]} 4... exd4 {[%clk 0:02:57.9]} 5. Nxd4 {[%clk 0:03:02.5]} 5...
Bb4 {[%clk 0:02:58.2]} 6. Nxc6 {[%clk 0:03:02.6]} 6... bxc6 {[%clk 0:02:59.1]}
7. Bd3 {[%clk 0:03:02.9]} 7... d5 {[%clk 0:02:55.1]} 8. Bd2 {[%clk 0:03:03.3]}
8... O-O {[%clk 0:02:49.9]} 9. O-O {[%clk 0:03:02.4]} 9... Bxc3 {[%clk
0:02:00.6]} 10. Bxc3 {[%clk 0:03:03.3]} 10... Nxe4 {[%clk 0:02:00.7]} 11. Bxe4
{[%clk 0:03:02.7]} 11... dxe4 {[%clk 0:02:01.6]} 12. Qe2 {[%clk 0:03:02.8]}
12... Bf5 {[%clk 0:01:56.9]} 13. Rad1 {[%clk 0:03:02.1]} 13... Qg5 {[%clk
0:01:53.9]} 14. Qe3 {[%clk 0:03:02.2]} 14... Qg6 {[%clk 0:01:52.6]} 15. Rd4
{[%clk 0:02:50.2]} 15... Rfe8 {[%clk 0:01:50.4]} 16. Rfd1 {[%clk 0:02:48.5]}
16... Bg4 {[%clk 0:01:48.7]} 17. Rd7 {[%clk 0:01:34.3]} 17... Bf3 {[%clk
0:01:36.1]} 18. g3 {[%clk 0:01:21.9]} 18... Qg4 {[%clk 0:01:35.2]} 19. Qd4
{[%clk 0:01:18.6]} 19... Bxd1 {[%clk 0:01:30.1]} 20. Qxd1 {[%clk 0:01:18.4]}
20... Qxd1+ {[%clk 0:01:31]} 21. Rxd1 {[%clk 0:01:18.5]} 21... Rad8 {[%clk
0:01:30.8]} 22. Re1 {[%clk 0:01:18.7]} 22... f5 {[%clk 0:01:29.2]} 23. h4 {[%clk
0:01:16.9]} 23... Rd5 {[%clk 0:01:27.3]} 24. Kf1 {[%clk 0:01:16.6]} 24... c5
{[%clk 0:01:23.5]} 25. Ke2 {[%clk 0:01:16.3]} 25... h6 {[%clk 0:01:22.3]} 26.
Ke3 {[%clk 0:01:15]} 26... g5 {[%clk 0:01:21]} 27. hxg5 {[%clk 0:01:14.8]} 27...
hxg5 {[%clk 0:01:21.9]} 28. Rh1 {[%clk 0:01:14.8]} 28... Kf7 {[%clk 0:01:07.8]}
29. Rh7+ {[%clk 0:01:10.1]} 29... Kg6 {[%clk 0:01:07]} 30. Rxc7 {[%clk
0:01:08.4]} 30... Kh5 {[%clk 0:00:38]} 31. Rxa7 {[%clk 0:01:08]} 31... Kg4
{[%clk 0:00:38.2]} 32. Rg7 {[%clk 0:01:05.6]} 32... Re6 {[%clk 0:00:27.5]} 33.
a4 {[%clk 0:01:01.3]} 33... c4 {[%clk 0:00:24.1]} 34. a5 {[%clk 0:00:59.6]}
34... Red6 {[%clk 0:00:19.6]} 35. Bb4 {[%clk 0:00:46.7]} 35... Rd7 {[%clk
0:00:18.2]} 36. Rg8 {[%clk 0:00:36.2]} 36... Rd1 {[%clk 0:00:14.8]} 37. a6
{[%clk 0:00:33.7]} 37... Ra1 {[%clk 0:00:13.8]} 38. Rg6 {[%clk 0:00:30.6]} 38...
Kh5 {[%clk 0:00:13.2]} 39. Rc6 {[%clk 0:00:27]} 39... Kg4 {[%clk 0:00:11.5]} 40.
Rxc4 {[%clk 0:00:23.5]} 40... Rxa6 {[%clk 0:00:10.7]} 41. Bc3 {[%clk 0:00:20.2]}
41... Rad6 {[%clk 0:00:08.4]} 42. Rc8 {[%clk 0:00:18.4]} 42... Rd1 {[%clk
0:00:07.4]} 43. Rg8 {[%clk 0:00:17.8]} 43... Rc1 {[%clk 0:00:06.2]} 44. Bf6
{[%clk 0:00:16.5]} 44... Rxc2 {[%clk 0:00:06]} 45. Rxg5+ {[%clk 0:00:16]} 45...
Kh3 {[%clk 0:00:06.2]} 46. Rxf5 {[%clk 0:00:16.2]} 46... Rc4 {[%clk 0:00:04.1]}
47. Bc3 {[%clk 0:00:15]} 47... Kg2 {[%clk 0:00:03.1]} 48. Rf4 {[%clk 0:00:14.8]}
48... Rd3+ {[%clk 0:00:03]} 49. Ke2 {[%clk 0:00:13.8]} 49... Rc6 {[%clk
0:00:01.8]} 50. Rxe4 {[%clk 0:00:13.6]} 50... Rcd6 {[%clk 0:00:02.4]} 51. Re3
{[%clk 0:00:13.1]} 51... Rxe3+ {[%clk 0:00:02]} 52. Kxe3 {[%clk 0:00:12.8]}
52... Rc6 {[%clk 0:00:01.6]} 53. g4 {[%clk 0:00:12.3]} 53... Rc8 {[%clk
0:00:02.5]} 54. g5 {[%clk 0:00:12.4]} 54... Kh3 {[%clk 0:00:03.4]} 55. f4 {[%clk
0:00:12.4]} 55... Kg4 {[%clk 0:00:03.6]} 56. Be5 {[%clk 0:00:12.6]} 56... Re8
{[%clk 0:00:03.8]} 57. Ke4 {[%clk 0:00:12.7]} 57... Rc8 {[%clk 0:00:01.9]} 58.
g6 {[%clk 0:00:12.7]} 58... Kh5 {[%clk 0:00:01.1]} 59. g7 {[%clk 0:00:12.7]}
59... Kg6 {[%clk 0:00:01.2]} 60. Kd5 {[%clk 0:00:12.7]} 60... Kf7 {[%clk
0:00:01.5]} 61. b4 {[%clk 0:00:12.3]} 1-0

[Event "*** SCC Grand Prix: Titled Tuesday Blitz"]
[Site "Chess.com"]
[Date "2020.08.11"]
[Round "4"]
[White "TokChess"]
[Black "GalperinPlaton"]
[Result "0-1"]
[WhiteElo "2390"]
[BlackElo "2613"]
[TimeControl "180+1"]
[EndTime "10:41:01 PDT"]
[Termination "GalperinPlaton won on time"]

1. Nf3 {[%clk 0:03:00.9]} 1... Nf6 {[%clk 0:02:58.3]} 2. g3 {[%clk 0:03:01]}
2... g6 {[%clk 0:02:57.6]} 3. Bg2 {[%clk 0:03:01.2]} 3... Bg7 {[%clk 0:02:53.1]}
4. O-O {[%clk 0:03:01.8]} 4... O-O {[%clk 0:02:53.5]} 5. c4 {[%clk 0:03:02.5]}
5... d6 {[%clk 0:02:52.4]} 6. Nc3 {[%clk 0:03:02.8]} 6... Nc6 {[%clk 0:02:53.3]}
7. d4 {[%clk 0:03:02.9]} 7... e5 {[%clk 0:02:53.4]} 8. dxe5 {[%clk 0:02:57.4]}
8... dxe5 {[%clk 0:02:54.3]} 9. Bg5 {[%clk 0:02:57.2]} 9... Be6 {[%clk 0:02:54]}
10. Nd2 {[%clk 0:02:34.5]} 10... h6 {[%clk 0:02:49.6]} 11. Bxf6 {[%clk
0:02:34.4]} 11... Qxf6 {[%clk 0:02:48.5]} 12. Nde4 {[%clk 0:02:32]} 12... Qe7
{[%clk 0:02:30.5]} 13. Nd5 {[%clk 0:02:30.3]} 13... Bxd5 {[%clk 0:02:30.5]} 14.
cxd5 {[%clk 0:02:30.4]} 14... Nd4 {[%clk 0:02:30.8]} 15. e3 {[%clk 0:02:29.3]}
15... Nf5 {[%clk 0:02:30.8]} 16. Qc2 {[%clk 0:02:26.8]} 16... Rac8 {[%clk
0:02:03.4]} 17. Rac1 {[%clk 0:02:21.1]} 17... c6 {[%clk 0:01:55.7]} 18. Rfd1
{[%clk 0:02:16.5]} 18... Rfd8 {[%clk 0:01:46.6]} 19. Qb3 {[%clk 0:01:49.1]}
19... cxd5 {[%clk 0:01:43.7]} 20. Rxc8 {[%clk 0:01:47.7]} 20... Rxc8 {[%clk
0:01:44.6]} 21. Qxd5 {[%clk 0:01:46.5]} 21... Kh7 {[%clk 0:01:44]} 22. Bh3
{[%clk 0:01:42.6]} 22... Rc2 {[%clk 0:01:40.7]} 23. Bxf5 {[%clk 0:01:40.7]}
23... gxf5 {[%clk 0:01:41.6]} 24. Nd6 {[%clk 0:01:40.9]} 24... Qf6 {[%clk
0:01:24.3]} 25. Qd3 {[%clk 0:01:36.4]} 25... Rxb2 {[%clk 0:01:23.9]} 26. Nxf5
{[%clk 0:01:36.7]} 26... Qg6 {[%clk 0:01:18.4]} 27. a4 {[%clk 0:01:23.6]} 27...
Ra2 {[%clk 0:01:08.9]} 28. Qe4 {[%clk 0:01:19]} 28... Qc6 {[%clk 0:00:59.7]} 29.
Qxc6 {[%clk 0:00:58.2]} 29... bxc6 {[%clk 0:01:00.6]} 30. Rd7 {[%clk 0:00:58.8]}
30... Rxa4 {[%clk 0:00:52.3]} 31. Rc7 {[%clk 0:00:37.4]} 31... a5 {[%clk
0:00:37]} 32. Rxc6 {[%clk 0:00:33.4]} 32... Bf8 {[%clk 0:00:22.9]} 33. Kg2
{[%clk 0:00:17]} 33... Rg4 {[%clk 0:00:16.4]} 34. Ra6 {[%clk 0:00:15.3]} 34...
a4 {[%clk 0:00:15]} 35. Kf3 {[%clk 0:00:11.7]} 35... Rb4 {[%clk 0:00:10.9]} 36.
g4 {[%clk 0:00:10.9]} 36... Rc4 {[%clk 0:00:06]} 37. h4 {[%clk 0:00:10.5]} 37...
a3 {[%clk 0:00:06.2]} 38. h5 {[%clk 0:00:10]} 38... Rc2 {[%clk 0:00:04.6]} 39.
Ra7 {[%clk 0:00:07.9]} 39... a2 {[%clk 0:00:04.2]} 40. Rxf7+ {[%clk 0:00:07.8]}
40... Kg8 {[%clk 0:00:05.1]} 41. Ra7 {[%clk 0:00:08]} 41... Rd2 {[%clk
0:00:02.1]} 42. Kg3 {[%clk 0:00:04.3]} 42... Bb4 {[%clk 0:00:01.8]} 43. Nxh6+
{[%clk 0:00:03.6]} 43... Kf8 {[%clk 0:00:02.3]} 44. Nf5 {[%clk 0:00:03.8]} 44...
Bc3 {[%clk 0:00:02.9]} 45. h6 {[%clk 0:00:04.2]} 45... a1=Q {[%clk 0:00:02.5]}
46. Rxa1 {[%clk 0:00:03]} 46... Bxa1 {[%clk 0:00:03.4]} 47. e4 {[%clk
0:00:02.9]} 47... Kg8 {[%clk 0:00:02.4]} 48. g5 {[%clk 0:00:02.9]} 48... Rd3+
{[%clk 0:00:02.9]} 49. f3 {[%clk 0:00:02.7]} 49... Kh7 {[%clk 0:00:03]} 50. Kg4
{[%clk 0:00:03.1]} 50... Bd4 {[%clk 0:00:02.7]} 51. Kh5 {[%clk 0:00:02.9]} 51...
Rxf3 {[%clk 0:00:02.8]} 52. g6+ {[%clk 0:00:03.2]} 52... Kh8 {[%clk 0:00:03.2]}
53. Kg5 {[%clk 0:00:01.7]} 53... Be3+ {[%clk 0:00:02.9]} 54. Kf6 {[%clk
0:00:02]} 54... Bxh6 {[%clk 0:00:02.5]} 55. Kf7 {[%clk 0:00:01.1]} 55... Bg7
{[%clk 0:00:02.9]} 56. Ke6 {[%clk 0:00:01]} 56... Rf4 {[%clk 0:00:03.1]} 57. Kf7
{[%clk 0:00:01.1]} 57... Rxe4 {[%clk 0:00:02.9]} 58. Nxg7 {[%clk 0:00:01.4]}
58... Rf4+ {[%clk 0:00:03.1]} 59. Ke6 {[%clk 0:00:01.5]} 59... Kxg7 {[%clk
0:00:03.1]} 60. Kxe5 {[%clk 0:00:02.4]} 60... Rf1 {[%clk 0:00:03.7]} 61. Ke4
{[%clk 0:00:02.4]} 61... Kxg6 {[%clk 0:00:04.6]} 0-1

[Event "*** SCC Grand Prix: Titled Tuesday Blitz"]
[Site "Chess.com"]
[Date "2020.08.11"]
[Round "4"]
[White "chesslh19"]
[Black "Jovidon91"]
[Result "0-1"]
[WhiteElo "2174"]
[BlackElo "2440"]
[TimeControl "180+1"]
[EndTime "10:41:01 PDT"]
[Termination "Jovidon91 won on time"]

1. e4 {[%clk 0:03:00.9]} 1... c5 {[%clk 0:02:58.6]} 2. Nf3 {[%clk 0:03:00.6]}
2... e6 {[%clk 0:02:59.1]} 3. d4 {[%clk 0:03:01]} 3... cxd4 {[%clk 0:03:00]} 4.
Nxd4 {[%clk 0:03:01.9]} 4... Nc6 {[%clk 0:03:00.4]} 5. Nb5 {[%clk 0:03:00.8]}
5... d6 {[%clk 0:02:56.4]} 6. c4 {[%clk 0:03:00.9]} 6... a6 {[%clk 0:02:54.9]}
7. Nd4 {[%clk 0:03:01.2]} 7... Qb6 {[%clk 0:02:51]} 8. Nc2 {[%clk 0:02:52.5]}
8... Nf6 {[%clk 0:02:43.7]} 9. Be2 {[%clk 0:02:52.7]} 9... Be7 {[%clk
0:02:43.3]} 10. Nc3 {[%clk 0:02:51.5]} 10... O-O {[%clk 0:02:43.1]} 11. O-O
{[%clk 0:02:50.5]} 11... Qc7 {[%clk 0:02:40.8]} 12. Be3 {[%clk 0:02:43.1]} 12...
b6 {[%clk 0:02:40.6]} 13. Nd4 {[%clk 0:02:29.8]} 13... Bb7 {[%clk 0:02:39.7]}
14. Nxc6 {[%clk 0:02:28.2]} 14... Bxc6 {[%clk 0:02:39.1]} 15. f3 {[%clk
0:02:28.1]} 15... Rac8 {[%clk 0:02:38.6]} 16. Rc1 {[%clk 0:02:24.2]} 16... Qb7
{[%clk 0:02:38.4]} 17. b4 {[%clk 0:02:08.9]} 17... Rfd8 {[%clk 0:02:34.8]} 18.
Qb3 {[%clk 0:01:56.6]} 18... d5 {[%clk 0:02:14.3]} 19. cxd5 {[%clk 0:01:55.9]}
19... exd5 {[%clk 0:02:14.4]} 20. exd5 {[%clk 0:01:55]} 20... Nxd5 {[%clk
0:02:10.7]} 21. Nxd5 {[%clk 0:01:54.1]} 21... Bxd5 {[%clk 0:02:11.6]} 22. Qa4
{[%clk 0:01:40.6]} 22... b5 {[%clk 0:02:03.4]} 23. Qa5 {[%clk 0:01:40.7]} 23...
Bf6 {[%clk 0:01:53.3]} 24. Qb6 {[%clk 0:01:25.7]} 24... Qxb6 {[%clk 0:01:35.5]}
25. Bxb6 {[%clk 0:01:25.4]} 25... Re8 {[%clk 0:01:35.9]} 26. Bd3 {[%clk
0:01:10]} 26... g6 {[%clk 0:01:30]} 27. a3 {[%clk 0:00:45.5]} 27... Rxc1 {[%clk
0:01:24.1]} 28. Rxc1 {[%clk 0:00:44.9]} 28... Bb2 {[%clk 0:01:23]} 29. Rd1
{[%clk 0:00:40.1]} 29... Bb7 {[%clk 0:01:12.8]} 30. Be4 {[%clk 0:00:15.7]} 30...
Bxe4 {[%clk 0:01:04.7]} 31. fxe4 {[%clk 0:00:16.6]} 31... Rxe4 {[%clk
0:00:59.6]} 32. Bc5 {[%clk 0:00:09.9]} 32... h5 {[%clk 0:00:54.6]} 33. Rd8+
{[%clk 0:00:09.7]} 33... Kg7 {[%clk 0:00:52.4]} 34. Ra8 {[%clk 0:00:09.5]} 34...
Re6 {[%clk 0:00:52]} 35. Kf2 {[%clk 0:00:03.7]} 35... g5 {[%clk 0:00:51]} 36. h3
{[%clk 0:00:02.9]} 36... h4 {[%clk 0:00:49]} 37. Rd8 {[%clk 0:00:02.3]} 37...
Bxa3 {[%clk 0:00:46.7]} 38. Rd3 {[%clk 0:00:02.9]} 38... Bb2 {[%clk 0:00:42.2]}
39. Rb3 {[%clk 0:00:03]} 39... Ba1 {[%clk 0:00:39.6]} 40. Ra3 {[%clk 0:00:03.2]}
40... Bf6 {[%clk 0:00:38.6]} 41. Ra2 {[%clk 0:00:03.1]} 41... Kg6 {[%clk
0:00:37.5]} 42. g4 {[%clk 0:00:03.2]} 42... hxg3+ {[%clk 0:00:34.4]} 43. Kxg3
{[%clk 0:00:04.1]} 43... Be5+ {[%clk 0:00:34.7]} 44. Kg2 {[%clk 0:00:04.4]}
44... f5 {[%clk 0:00:34.6]} 45. Rd2 {[%clk 0:00:04.1]} 45... f4 {[%clk
0:00:34.4]} 46. Kf3 {[%clk 0:00:04.3]} 46... Kf5 {[%clk 0:00:29]} 47. Rd8 {[%clk
0:00:03.6]} 47... Bf6 {[%clk 0:00:28.3]} 48. Rd5+ {[%clk 0:00:03.4]} 48... Re5
{[%clk 0:00:25.1]} 49. Rd6 {[%clk 0:00:03.7]} 49... Re1 {[%clk 0:00:24]} 50.
Rxa6 {[%clk 0:00:03.6]} 50... Rf1+ {[%clk 0:00:20.6]} 51. Kg2 {[%clk 0:00:04]}
51... Rb1 {[%clk 0:00:20.5]} 52. Rb6 {[%clk 0:00:04.2]} 52... Rb2+ {[%clk
0:00:19.1]} 53. Kf3 {[%clk 0:00:04.5]} 53... Rb3+ {[%clk 0:00:19.1]} 54. Kg2
{[%clk 0:00:05]} 54... Rg3+ {[%clk 0:00:18.5]} 55. Kf2 {[%clk 0:00:04.6]} 55...
Rxh3 {[%clk 0:00:16.7]} 56. Rxb5 {[%clk 0:00:05.2]} 56... Kg4 {[%clk 0:00:16.2]}
57. Bd6 {[%clk 0:00:04.5]} 57... Rh2+ {[%clk 0:00:15.3]} 58. Kg1 {[%clk
0:00:04.9]} 58... Rd2 {[%clk 0:00:15]} 59. Bc7 {[%clk 0:00:03.9]} 59... Bd4+
{[%clk 0:00:14.7]} 60. Kf1 {[%clk 0:00:03.4]} 60... Kf3 {[%clk 0:00:14.8]} 61.
Ke1 {[%clk 0:00:03.1]} 61... Re2+ {[%clk 0:00:14.8]} 62. Kd1 {[%clk 0:00:02.7]}
62... g4 {[%clk 0:00:15.2]} 63. Bxf4 {[%clk 0:00:01.4]} 63... Ra2 {[%clk
0:00:10.7]} 64. Bc7 {[%clk 0:00:01.3]} 64... Be3 {[%clk 0:00:10.4]} 0-1